[Event "3rd Sharjah Challengers 2023"]
[Site "Sharjah"]
[Date "2023.05.19"]
[Round "3.5"]
[White "Lim, Zhuo Ren"]
[Black "Hesham, Abdelrahman"]
[Result "1-0"]
[ECO "E01"]
[WhiteElo "2294"]
[BlackElo "2409"]
[Annotator "TA"]
[PlyCount "143"]
[EventDate "2023.05.16"]
[EventType "swiss"]
[EventCountry "UAE"]
[SourceTitle "playchess.com"]
[Source "ChessBase"]
[SourceQuality "1"]
[TimeControl "5400+30"]

{[%evp 9,143,26,21,28,33,40,46,32,34,36,36,20,17,12,20,13,12,8,8,14,6,0,0,0,41,12,17,20,19,35,35,35,35,36,40,20,27,25,25,16,71,35,35,35,41,43,52,52,66,52,80,52,52,52,52,52,52,33,52,33,33,33,33,10,14,0,52,0,0,0,52,0,0,0,52,0,33,0,52,52,52,52,52,52,52,52,52,52,52,52,52,52,52,0,52,0,0,0,52,52,52,0,395,580,598,361,400,342,355,289,384,273,1168,1148,29961,29962,29953,29958,29937,4133,29956,29940,29940,6352,29978,29979,29979,29970,29974,29973,29979,29980,29980,29981,29981,29982]} 1. d4 {[%emt 0:00:04]} Nf6 {[%emt 0:00:06]} 2. c4 {[%emt 0:00:07]} e6 {[%emt 0:00:04]} 3. Nf3 {[%emt 0:00:11]} d5 {[%emt 0:00:05]} 4. g3 {[%emt 0:00:08]} h6 {[%emt 0:00:05]} 5. Bg2 {[%emt 0:00:21]} Bd6 {[%emt 0:00:06]} 6. O-O {[%emt 0:00:18] E01: Catalan: Early deviations.} O-O {[%emt 0:00:03]} 7. Nc3 {[%emt 0:03:58]} Nc6 {[%emt 0:00:10] Inhibits Ne5.} 8. b3 {[%emt 0:00:57] White is slightly better.} dxc4 {[%emt 0:00:08]} 9. bxc4 {[%emt 0:00:04]} e5 {[%emt 0:00:07]} 10. Nxe5 {[%emt 0:07:40]} Nxe5 {[%emt 0:05:18]} 11. c5 {[%emt 0:00:27]} Bxc5 {[%emt 0:03:02]} 12. dxc5 {[%emt 0:00:25]} Qe7 {[%emt 0:00:45]} 13. Nd5 {[%emt 0:08:54]} Nxd5 {[%emt 0:01:22]} 14. Qxd5 {[%emt 0:00:08]} Rd8 {[%emt 0:04:59]} 15. Qe4 {[%emt 0:00:23]} Qxc5 {[%emt 0:08:56]} 16. Bf4 {[%emt 0:01:05][%cal Of1c1] And now Rfc1! would win. This pair of bishops is nice.} Re8 {[%emt 0:10:14] [#]} 17. Rac1 $146 {[%emt 0:14:45]} (17. Rfd1 $5 {[%cal Rd1d5]} f5 18. Qd5+ Qxd5 19. Rxd5 $14 (19. Bxd5+ Kh7 $11)) ({Predecessor:} 17. Rfd1 f6 18. Rac1 Qe7 19. Bxe5 fxe5 20. Qg6 Be6 21. Bxb7 Bf7 22. Qa6 Rad8 23. Rxd8 Rxd8 24. Qxa7 c6 25. Qa5 c5 26. Be4 c4 27. a4 Rb8 28. Bd5 {1-0 Urazayev,A (2430)-Makridis,D (2152) Paracin op-A 15th 2022 (1)}) 17... Qe7 {[%emt 0:14:45]} 18. Rfd1 {[%emt 0:26:55][%cal Bf1d1,Bd1d8,Bd8a8,Ba8b8,Bb8b7,Bb7a7][%mdl 32] Hoping for Qxe5.} c6 {[%emt 0:13:05]} 19. Qxe5 {[%emt 0:01:18]} Qxe5 {[%emt 0:01:06]} 20. Bxe5 {[%emt 0:00:02]} Rxe5 {[%emt 0:00:10]} 21. Rd8+ {[%emt 0:00:04]} Kh7 {[%emt 0:00:02]} 22. Bh3 {[%emt 0:03:54]} Bxh3 {[%emt 0:04:30]} 23. Rxa8 $11 {[%emt 0:00:59][%mdl 4096] Endgame KRR-KRB} Ra5 {[%emt 0:10:31]} 24. Rb8 {[%emt 0:05:30]} b6 {[%emt 0:01:00]} (24... b5 $11 {keeps the balance.}) 25. Rxc6 {[%emt 0:00:17]} (25. Rb7 $5 {[%cal Rb7f7]}) 25... Rxa2 {[%emt 0:00:05] ( -> ...Ra1+)} 26. Rc1 {[%emt 0:00:18] Dodges Ra1} Rxe2 {[%emt 0:10:18]} 27. Rb7 {[%emt 0:00:05][%csl LRa7,LRf7]} Be6 {[%emt 0:00:07]} 28. Rxa7 {[%emt 0:00:10]} Rb2 {[%emt 0:00:22] Inhibits Rb1.} 29. h4 {[%emt 0:03:24]} h5 {[%emt 0:10:04]} 30. Kf1 {[%emt 0:00:57]} b5 {[%emt 0:00:25]} 31. Rb7 {[%emt 0:01:02]} b4 {[%emt 0:01:49]} 32. Rc5 {[%emt 0:02:32]} g6 {[%emt 0:00:57]} 33. Ke1 {[%emt 0:00:22]} Kg7 {[%emt 0:00:46]} 34. Rcb5 {[%emt 0:01:46]} (34. Re5 $5 {[%cal Re5e6]} Rb1+ 35. Kd2 $16) 34... b3 {[%emt 0:00:08]} 35. Rb4 {[%emt 0:00:16]} Kf6 {[%emt 0:00:17]} 36. R7b5 {[%emt 0:00:28]} Ke7 {[%emt 0:01:27]} 37. Rb6 {[%emt 0:00:30]} Bd5 {[%emt 0:00:46]} (37... Kd7 $11) 38. Kf1 {[%emt 0:00:18]} (38. Rd4 $14 Be6 39. Rd2 Rb1+ 40. Ke2) 38... Kd7 {[%emt 0:00:44]} 39. Ke1 {[%emt 0:00:28]} Ke7 {[%emt 0:00:10]} (39... Be6 $11) 40. Kf1 {[%emt 0:00:03]} (40. Rd4 $14 Be6 41. Rd2 Rb1+ 42. Ke2) 40... Be6 {[%emt 0:00:14]} 41. Ke1 {[%emt 0:00:08]} Kf6 {[%emt 0:00:06]} (41... Bd5 $11) 42. R6b5 {[%emt 0:00:05]} (42. Re4 $14) 42... Kg7 {[%emt 0:01:16]} 43. Kf1 {[%emt 0:00:15]} Rb1+ {[%emt 0:00:15]} (43... Kf6 $11) 44. Ke2 $14 {[%emt 0:01:06]} Bg4+ {[%emt 0:00:07]} 45. f3 {[%emt 0:00:46]} Be6 {[%emt 0:00:08]} 46. Ke3 {[%emt 0:00:12]} Kh6 {[%emt 0:01:10]} 47. Kf4 {[%emt 0:00:13]} Kg7 {[%emt 0:01:06]} 48. Rb7 {[%emt 0:01:07]} Kf6 {[%emt 0:00:10]} 49. R7b6 {[%emt 0:00:13]} Ke7 {[%emt 0:00:42]} 50. R6b5 {[%emt 0:00:58]} Kf6 {[%emt 0:00:40]} 51. Rb6 {[%emt 0:00:24]} ({Better is} 51. Rb7 $14) 51... Kg7 {[%emt 0:00:01]} ({Black should play} 51... Ke7 $1 $11) 52. Kg5 {[%emt 0:00:57]} ({White should try} 52. Rd4 $14) 52... Bd5 {[%emt 0:00:55]} 53. Kf4 {[%emt 0:00:10]} Rb2 {[%emt 0:00:34]} (53... Be6 $11) 54. R4b5 {[%emt 0:00:27]} Be6 {[%emt 0:00:27]} 55. Kg5 {[%emt 0:00:51]} (55. Rd6 $14) 55... Rd2 $2 {[%emt 0:00:32][%mdl 8192] [#] Black is now going downhill.} (55... Rg2 $11) 56. Rxe6 $1 $18 {[%emt 0:01:10][%mdl 512]} fxe6 {[%emt 0:00:01] KR-KR} 57. Rb7+ {[%emt 0:00:07]} (57. Rxb3 Rd5+ 58. Kf4 Ra5 $11) 57... Kf8 {[%emt 0:00:30] [#]} 58. Kf6 $1 {[%emt 0:00:44] White wants to mate with Rb8+.} (58. Rxb3 Rg2 $16) 58... Ke8 {[%emt 0:00:03]} 59. Rxb3 {[%emt 0:00:34]} e5 {[%emt 0:00:25]} 60. Kxe5 {[%emt 0:01:37]} (60. Kxg6 Rg2 $16) 60... Kf7 $2 {[%emt 0:01:32]} (60... Rg2 61. Ke6 Kf8) 61. Rb7+ {[%emt 0:00:13]} Kg8 {[%emt 0:00:01] [#]} 62. Kf6 $1 {[%emt 0:00:21]} Rd6+ {[%emt 0:00:37]} 63. Kg5 {[%emt 0:00:06]} Kf8 {[%emt 0:00:50]} 64. Kh6 {[%emt 0:00:23]} (64. Ra7 $142 Rb6 65. Kh6 Rb3 66. Ra8+ (66. Kxg6 Rxf3 67. Ra8+ Ke7 $16) 66... Kf7 67. Ra6 Rb8 68. Rxg6 Rh8+ 69. Kg5) 64... Rd3 {[%emt 0:00:30]} 65. Rg7 {[%emt 0:00:35]} ({Weaker is} 65. Kxg6 Rxf3 66. Rb8+ (66. Kxh5 Rxg3 67. Kh6 Rh3 $14) 66... Ke7 $16) 65... Rxf3 {[%emt 0:00:31]} 66. Rxg6 {[%emt 0:00:05]} Kf7 {[%emt 0:00:31]} 67. Kxh5 {[%emt 0:00:42] White mates.} Rf5+ {[%emt 0:00:04]} 68. Rg5 {[%emt 0:00:09]} Rf3 {[%emt 0:00:23]} 69. g4 {[%emt 0:00:23]} Rh3 {[%emt 0:00:35]} 70. Ra5 {[%emt 0:00:12]} Kg7 {[%emt 0:00:07]} 71. Ra7+ {[%emt 0:00:08]} Kg8 {[%emt 0:00:04]} 72. Kg6 {[%emt 0:01:07] Weighted Error Value: White=0.15 (very precise) /Black=0.24 (precise)} 1-0

[Event "3rd Sharjah Challengers 2023"]
[Site "Sharjah"]
[Date "2023.05.19"]
[Round "3.6"]
[White "Liyanage, Ranindu Dilshan"]
[Black "Burmakin, Vladimir"]
[Result "1-0"]
[ECO "B12"]
[WhiteElo "2342"]
[BlackElo "2496"]
[Annotator "TA"]
[PlyCount "47"]
[EventDate "2023.05.16"]
[EventType "swiss"]
[EventCountry "UAE"]
[SourceTitle "playchess.com"]
[Source "ChessBase"]
[SourceQuality "1"]
[TimeControl "5400+30"]

{[%evp 9,47,21,14,-12,16,9,17,12,2,8,13,29,17,23,31,31,36,22,37,15,2,9,24,0,28,0,0,7,37,38,48,51,202,211,412,410,397,398,875,875]} 1. e4 {[%emt 0:00:09]} c6 {[%emt 0:00:10]} 2. d4 {[%emt 0:00:10]} d5 {[%emt 0:00:03]} 3. e5 {[%emt 0:00:16]} Bf5 {[%emt 0:00:04]} 4. c4 {[%emt 0:00:14]} e6 {[%emt 0:00:46]} 5. Nc3 {[%emt 0:00:18]} Ne7 {[%emt 0:01:42][%cal Oc6c5]} 6. h3 {[%emt 0:01:03] B12: Caro-Kann: Advance Variation.} Nd7 {[%emt 0:08:24]} 7. Nf3 {[%emt 0:00:46]} dxc4 {[%emt 0:01:19]} 8. Bxc4 {[%emt 0:00:22] The position is equal.} Nb6 {[%emt 0:00:08]} 9. Bd3 {[%emt 0:00:32]} Bxd3 {[%emt 0:01:25]} 10. Qxd3 {[%emt 0:00:06]} h6 {[%emt 0:05:54]} 11. O-O {[%emt 0:05:02]} Ned5 {[%emt 0:03:52]} 12. Ne4 {[%emt 0:02:28]} Be7 {[%emt 0:00:46] [#]} 13. Re1 $146 {[%emt 0:06:01][%cal Bf1e1,Be1e4,Be4g4][%mdl 32]} ({Predecessor:} 13. Bd2 O-O 14. Rac1 Qd7 15. Rfe1 Rad8 16. Ng3 Nc7 17. Qe4 f5 18. exf6 Bxf6 19. Nh5 Bxd4 {0-1 Stankovic,M (2454)-Rozum,I (2566) Titled Tuesday intern op 21st April blitz 2020 (8)}) 13... Rc8 {[%emt 0:18:37]} 14. Bd2 {[%emt 0:04:45]} O-O {[%emt 0:00:13]} 15. Rac1 {[%emt 0:10:01]} Nd7 {[%emt 0:03:11]} 16. Ng3 {[%emt 0:02:28]} Kh8 {[%emt 0:51:56]} 17. Re4 {[%emt 0:08:11]} Rg8 {[%emt 0:00:00]} 18. Rg4 {[%emt 0:01:35]} Nf8 {[%emt 0:00:00]} (18... c5 {is interesting.} 19. Ne4 Rf8 20. Nd6 Bxd6 21. exd6 c4) 19. Ne4 {[%emt 0:02:39]} Nh7 {[%emt 0:00:00]} 20. Re1 {[%emt 0:14:40]} c5 $2 {[%emt 0:00:00] Black cannot hold the game after this.} ({Black should play} 20... Qc7 $14) 21. dxc5 $40 {[%emt 0:01:34][%mdl 128] White is out for blood.} Bxc5 $2 {[%emt 0:00:00] [#]} (21... Rxc5 22. Nxc5 Bxc5) 22. Neg5 $1 {[%emt 0:06:17][%mdl 512]} Nxg5 {[%emt 0:00:00]} 23. Nxg5 {[%emt 0:00:24][%cal Rg5f7]} ({Worse is} 23. Bxg5 Qb6 24. Re2 Rc7 $15) 23... Bxf2+ $2 {[%emt 0:00:00]} (23... hxg5 24. Bxg5 g6 25. Bxd8 Rgxd8) 24. Kxf2 {[%emt 0:00:48] Weighted Error Value: White=0.07 (flawless) /Black=0.34} 1-0

[Event "3rd Sharjah Challengers 2023"]
[Site "Sharjah"]
[Date "2023.05.19"]
[Round "3.7"]
[White "Fawzy, Adham"]
[Black "Kayonde, Andrew"]
[Result "1-0"]
[ECO "B02"]
[WhiteElo "2495"]
[BlackElo "2361"]
[Annotator "TA"]
[PlyCount "59"]
[EventDate "2023.05.16"]
[EventType "swiss"]
[EventCountry "UAE"]
[SourceTitle "playchess.com"]
[Source "ChessBase"]
[SourceQuality "1"]
[TimeControl "5400+30"]

{[%evp 9,59,47,43,40,65,61,72,67,70,66,64,66,133,129,117,109,126,142,137,79,175,195,175,170,207,211,638,648,631,615,600,552,825,810,827,833,836,830,881,872,872,796,850,845,835,761,754,752,750,742,2185,2137]} 1. e4 {[%emt 0:00:05][%cal Be2e4,Be4e5][%mdl 32]} Nf6 {[%emt 0:00:57][%cal Bg8f6,Bf6d5,Bd5b6,Bb6c4][%mdl 32]} 2. e5 {[%emt 0:02:47]} Nd5 {[%emt 0:00:19]} 3. c4 {[%emt 0:02:02]} Nb6 {[%emt 0:00:28]} 4. a4 {[%emt 0:00:08]} d5 {[%emt 0:01:58]} 5. c5 {[%emt 0:05:15]} Nc4 {[%emt 0:00:09]} 6. d4 {[%emt 0:05:10] B02: Alekhine's Defence: Chase Variation and lines with early Nc3.} Nc6 {[%emt 0:18:14]} 7. b3 {[%emt 0:04:16]} N4a5 {[%emt 0:00:17][%cal Oc6d4]} 8. Bd2 $1 {[%emt 0:01:54] [#] White is better.} b6 $146 {[%emt 0:05:08]} ({Predecessor:} 8... Bf5 9. Nf3 e6 10. Na3 b6 11. b4 Nc4 12. Nxc4 dxc4 13. Bxc4 bxc5 14. dxc5 Be7 {0-1 Schulz,H (2013)-Laqua,C (2142) Hamburg St Pauli op-A 2010 (8)}) 9. Bxa5 {[%emt 0:06:42]} ({Don't play} 9. Bb5 a6 10. Bxc6+ Nxc6 11. cxb6 cxb6 $15) 9... Nxa5 {[%emt 0:02:51]} 10. b4 {[%emt 0:06:13]} Nc4 {[%emt 0:00:08]} (10... Nc6 $14) 11. Qf3 $1 $16 {[%emt 0:00:25] Bxc4 would be deadly.} Rb8 {[%emt 0:02:23] [#]} 12. Nc3 $1 {[%emt 0:04:34]} e6 {[%emt 0:00:07]} 13. Bxc4 {[%emt 0:01:05]} dxc4 {[%emt 0:00:12]} 14. Nge2 {[%emt 0:00:20] White is more active.} ({Better is} 14. Rd1) 14... a5 {[%emt 0:02:28] [#]} (14... bxc5 $16 {might work better.} 15. dxc5 (15. bxc5 Bb7 $11) 15... Qd3) 15. b5 $1 $18 {[%emt 0:01:55]} bxc5 {[%emt 1:02:21]} 16. dxc5 {[%emt 0:55:39] aiming for Rd1.} Qd3 {[%emt 0:00:30]} 17. Qc6+ {[%emt 0:00:30]} Bd7 $2 {[%emt 0:00:30]} (17... Qd7) 18. Qxc7 {[%emt 0:00:30] White is clearly winning.} Rc8 {[%emt 0:00:30]} 19. Qb7 {[%emt 0:00:30]} Bxc5 {[%emt 0:00:30]} 20. Rd1 {[%emt 0:00:30]} Bb4 {[%emt 0:00:30]} 21. O-O {[%emt 0:00:30]} Rd8 {[%emt 0:00:30]} 22. Rxd3 {[%emt 0:00:30]} cxd3 {[%emt 0:00:30]} 23. Nd4 {[%emt 0:00:30]} Bxc3 {[%emt 0:00:30]} 24. Nc6 {[%emt 0:00:30][%cal Bd4c6,Bc6b8,Bb8d7,Bd7e5][%mdl 32]} Rc8 {[%emt 0:00:30]} 25. Nb8 {[%emt 0:00:30]} O-O {[%emt 0:00:30]} 26. Nxd7 {[%emt 0:00:30]} Rfd8 {[%emt 0:00:30]} 27. Qxc8 {[%emt 0:00:30]} Rxc8 {[%emt 0:00:30]} 28. b6 {[%emt 0:00:30][%cal Bb5b6,Bb6b7][%mdl 32]} Rd8 {[%emt 0:00:30] [#]} 29. b7 $1 {[%emt 0:00:30]} Bxe5 {[%emt 0:00:30]} (29... d2 30. b8=Q) 30. Nxe5 {[%emt 0:00:30] Excellently played by Fawzy!   Weighted Error Value: White=0.05 (flawless) /Black=0.60} 1-0

[Event "3rd Sharjah Challengers 2023"]
[Site "Sharjah"]
[Date "2023.05.19"]
[Round "3.8"]
[White "Ohanyan, Emin"]
[Black "Zawadzka, Jolanta"]
[Result "1-0"]
[ECO "D38"]
[WhiteElo "2444"]
[BlackElo "2348"]
[Annotator "TA"]
[PlyCount "141"]
[EventDate "2023.05.16"]
[EventType "swiss"]
[EventCountry "UAE"]
[SourceTitle "playchess.com"]
[Source "ChessBase"]
[SourceQuality "1"]
[TimeControl "5400+30"]

{[%evp 11,141,7,5,7,6,0,0,6,15,27,62,66,72,56,52,64,55,55,92,72,72,71,102,109,93,106,103,71,77,70,106,67,65,66,65,29,84,72,71,79,73,67,80,70,117,111,105,106,97,100,98,93,86,94,101,72,70,74,77,24,28,25,60,18,34,32,145,144,131,66,146,135,151,151,151,150,147,90,92,36,36,36,65,56,321,26,19,0,321,321,324,318,402,449,453,449,441,427,383,142,511,474,1108,1108,1087,912,918,0,0,0,0,0,29975,29976,29977,29978,29978,0,0,0,29978,29979,29979,29980,29980,29981,29981,29982,29982,29982,29983,29984]} 1. d4 {[%emt 0:00:03]} Nf6 {[%emt 0:00:06]} 2. c4 {[%emt 0:00:05]} e6 {[%emt 0:00:04]} 3. Nf3 {[%emt 0:00:02]} d5 {[%emt 0:00:06]} 4. Nc3 {[%emt 0:00:04]} Bb4 {[%emt 0:00:05]} 5. Qa4+ {[%emt 0:00:04]} Nc6 {[%emt 0:00:06]} 6. e3 {[%emt 0:00:03]} O-O {[%emt 0:00:25]} 7. Qc2 {[%emt 0:00:04] D38: Queen's Gambit Declined: Ragozin Defence (4 Nf3 Bb4).} Re8 {[%emt 0:03:10]} 8. Bd2 {[%emt 0:00:33]} a6 {[%emt 0:07:46]} 9. a3 {[%emt 0:05:56] The position is equal.} Bf8 {[%emt 0:02:58]} 10. Be2 {[%emt 0:01:38][%cal Bf1e2,Be2c4,Bc4d5,Bd5f3][%mdl 32]} e5 {[%emt 0:12:54]} 11. cxd5 {[%emt 0:10:44]} Nxd5 {[%emt 0:00:49]} 12. Nxd5 {[%emt 0:05:20]} Qxd5 {[%emt 0:00:07]} 13. Bc4 {[%emt 0:01:09]} Qd8 {[%emt 0:02:49][%cal Re5d4]} 14. Qb3 {[%emt 0:22:20] [#]} Qe7 $146 {[%emt 0:05:24]} ({Predecessor:} 14... Qf6 15. dxe5 Qg6 16. O-O Nxe5 17. Nxe5 Rxe5 18. Bc3 Re8 19. Rad1 c6 20. Rd2 b5 {½-½ Rychagov,A (2545)-Maghsoodloo,P (2676) Titled Tuesday intern op 16th June blitz 2020 (5)}) 15. Nxe5 {[%emt 0:03:32]} Nxe5 {[%emt 0:00:06]} 16. dxe5 {[%emt 0:00:02]} Qd7 {[%emt 0:16:53]} 17. Bc3 {[%emt 0:01:55]} b5 {[%emt 0:00:20]} 18. Bd5 {[%emt 0:02:05]} c6 {[%emt 0:00:07]} 19. Bf3 {[%emt 0:00:32]} Qc7 {[%emt 0:00:08]} 20. O-O {[%emt 0:00:59]} a5 {[%emt 0:02:00]} 21. Rac1 {[%emt 0:03:31] White is more active.} Be6 {[%emt 0:02:35]} 22. Qc2 {[%emt 0:00:41]} Rac8 {[%emt 0:04:39]} 23. Be4 {[%emt 0:07:16]} g6 {[%emt 0:02:32]} (23... b4 $1 $11) 24. f4 $16 {[%emt 0:00:40]} b4 {[%emt 0:02:14]} 25. axb4 {[%emt 0:00:01]} axb4 {[%emt 0:00:06]} 26. Be1 {[%emt 0:01:07]} Qb6 {[%emt 0:00:58]} 27. Qe2 {[%emt 0:00:55]} (27. Bxc6 $2 Bd5 28. Bxe8 Rxc2 29. Rxc2 Qxe3+ 30. Kh1 Qe4 $19) 27... Bg7 {[%emt 0:04:08]} (27... Bg4 $14 28. Bf3 (28. Qxg4 Qxe3+ 29. Bf2 Qxe4 $11) 28... Bxf3 29. Rxf3 (29. Qxf3 c5 $16) (29. gxf3 c5 $14) 29... c5) 28. Bh4 {[%emt 0:02:44]} c5 {[%emt 0:02:04]} 29. Bd3 {[%emt 0:01:17]} c4 {[%emt 0:03:50][%mdl 64] Deflection} 30. Bxc4 {[%emt 0:00:08]} Bxc4 {[%emt 0:00:22]} 31. Rxc4 {[%emt 0:00:02]} Rxc4 {[%emt 0:00:08]} 32. Qxc4 {[%emt 0:00:01] Rd1 would be deadly.} Qxe3+ {[%emt 0:00:07]} 33. Bf2 {[%emt 0:01:45]} Qd2 {[%emt 0:00:20]} 34. b3 {[%emt 0:02:01]} Bf8 {[%emt 0:04:22]} 35. g3 {[%emt 0:03:40]} (35. Re1 $16) 35... Rd8 {[%emt 0:00:50]} 36. Re1 $36 {[%emt 0:06:08][%mdl 2048] White has some pressure.} Qd3 {[%emt 0:03:13]} 37. Qc7 {[%emt 0:00:47]} (37. Qxd3 {simplifies} Rxd3 38. Re3 Rd1+ 39. Kg2) 37... Rd7 {[%emt 0:00:27]} 38. Qc6 {[%emt 0:00:32]} Qd5 {[%emt 0:00:43]} (38... Qf5 $14) 39. Qxd5 {[%emt 0:09:37]} Rxd5 {[%emt 0:00:05][%mdl 4096] Endgame KRB-KRB} 40. Kg2 {[%emt 0:01:01]} (40. Rc1 $16) 40... Rd2 {[%emt 0:01:29]} (40... Rd3 $14) 41. Rc1 {[%emt 0:04:17]} Rb2 {[%emt 0:01:42]} 42. Rc8 {[%emt 0:00:06]} Kg7 {[%emt 0:01:45]} 43. Rc7 {[%emt 0:00:20] Strongly threatening e6.} Kg8 {[%emt 0:00:35] [#]} 44. g4 {[%emt 0:01:17]} (44. Kf3 $142 $1) 44... Rxb3 {[%emt 0:00:48]} 45. f5 {[%emt 0:00:42]} (45. Rc8 $16 Rc3 46. Rb8) 45... Rc3 $14 {[%emt 0:00:49] Inhibits Bc5.} 46. Rb7 {[%emt 0:00:12] And now Rb8 would win.} h5 {[%emt 0:04:56]} 47. Rb8 {[%emt 0:01:24]} Rc2 $2 {[%emt 0:01:15][%mdl 8192]} (47... Rc4 $1 $14) 48. Kf1 $2 {[%emt 0:01:50]} ({Only move:} 48. gxh5 $18 gxh5 49. Kf3) 48... Rc1+ $1 $11 {[%emt 0:01:23]} 49. Kg2 $2 {[%emt 0:00:38][%mdl 8192]} (49. Ke2 $11 Rc2+ 50. Ke3) 49... Rc2 $1 $18 {[%emt 0:00:05]} 50. gxh5 {[%emt 0:00:42]} gxh5 {[%emt 0:00:52]} 51. Kf3 {[%emt 0:01:10] Prevents Re2. Hoping for e6.} Rc3+ {[%emt 0:01:35]} 52. Be3 {[%emt 0:00:33]} b3 {[%emt 0:00:09]} 53. f6 {[%emt 0:00:53]} b2 {[%emt 0:01:17]} 54. Rxb2 {[%emt 0:00:34] Threatens to win with Rb8.} Bh6 {[%emt 0:00:51]} 55. Re2 {[%emt 0:00:07] Black must now prevent Ke4.} Kh7 $2 {[%emt 0:00:16][%mdl 8192]} (55... h4 $16 {is a better chance.}) 56. Ke4 {[%emt 0:00:22]} h4 {[%emt 0:03:12]} (56... Bf8 $142 57. Rb2 Bh6) 57. Bxh6 {[%emt 0:00:46]} Kxh6 {[%emt 0:00:02] KR-KR} 58. Rg2 {[%emt 0:00:44][%cal Oe5e6] White threatens e6! and mate.} Rc1 {[%emt 0:01:17]} 59. Rg7 $2 {[%emt 0:01:31]} ({Better is} 59. Rg4 $18 h3 60. Kf5) 59... Re1+ $11 {[%emt 0:00:18]} 60. Kd5 {[%emt 0:00:38]} Rd1+ {[%emt 0:00:08]} 61. Kc5 {[%emt 0:00:20]} Re1 $2 {[%emt 0:00:05][%mdl 8192] [#]} (61... Rc1+ $11 62. Kd6 Rd1+ 63. Ke7 Re1 64. Kxf7 (64. Rxf7 Rxe5+ 65. Kd6 Re2 $11) 64... Rxe5 65. Rg6+ Kh7) 62. Kd6 $1 {[%emt 0:00:06]} ({And not} 62. Rxf7 Rxe5+ 63. Kd4 Re2 $11) 62... Rd1+ {[%emt 0:00:25]} 63. Ke7 {[%emt 0:00:20]} Re1 {[%emt 0:00:07]} 64. Kd6 $2 {[%emt 0:00:04]} (64. Kxf7 {mates} Rxe5 65. Rg6+ Kh7 66. Rg4 Kh6 67. Rxh4+ Kg5 68. Rh7 Rf5 69. h4+ Kf4 70. Kg7) 64... Rd1+ {[%emt 0:00:03]} 65. Ke7 $2 {[%emt 0:00:02][%mdl 8192]} (65. Kc6 $11 Rc1+ 66. Kd7) 65... Re1 {[%emt 0:00:05]} 66. Kxf7 {[%emt 0:00:37] White mates.} Rxe5 {[%emt 0:00:08]} 67. Rg6+ {[%emt 0:00:57]} Kh7 {[%emt 0:04:55]} 68. Rg4 {[%emt 0:00:16]} Kh6 {[%emt 0:00:04]} 69. Rxh4+ {[%emt 0:00:22]} Kg5 {[%emt 0:00:04]} 70. Rh3 {[%emt 0:00:26]} Rf5 {[%emt 0:01:14]} 71. Kg7 {[%emt 0:00:25] Weighted Error Value: White=0.25 (precise) /Black=0.32} 1-0